fUSD/lending_fUSD_20260128
["ID","MTS","AMOUNT","RATE_DAILY","PERIOD"]
[403834716,1769578242582,-250.0,0.00016471,2]
[403834717,1769578242592,-394.19,0.00016471,2]
[403834718,1769578242601,-166.66,0.00016504,2]
[403834719,1769578242610,-150.0,0.00016517,2]
[403834720,1769578242620,-325.91423618,0.00016563,2]
[403834721,1769578242629,-166.51,0.00016712,2]
[403834722,1769578242639,-166.66,0.0001683,2]
[403834723,1769578242648,-578.20924308,0.00016861,2]
[403834724,1769578242658,-174.61919141,0.00016861,2]
[403834725,1769578242667,-500.0,0.00016861,2]
[403834726,1769578242677,-500.0,0.00016861,2]
[403834727,1769578242687,-500.0,0.00016861,2]
[403834728,1769578242696,-500.0,0.00016861,2]
[403834729,1769578242706,-500.0,0.00016861,2]
[403834730,1769578242715,-500.0,0.00016861,2]
[403834731,1769578242724,-500.0,0.00016861,2]
[403834732,1769578242734,-500.0,0.00016861,2]
[403834733,1769578242743,-500.0,0.00016861,2]
[403834734,1769578242753,-500.0,0.00016861,2]
[403834735,1769578242762,-500.0,0.00016861,2]
[403834736,1769578242771,-1000.0,0.00016861,2]
[403834737,1769578242781,-1000.0,0.00016861,2]
[403834738,1769578242790,-1000.0,0.00016861,2]
[403834739,1769578242799,-1000.0,0.00016861,2]
[403834740,1769578242809,-1000.0,0.00016861,2]
[403834741,1769578242818,-1000.0,0.00016861,2]
[403834742,1769578242827,-1000.0,0.00016861,2]
[403834743,1769578242836,-1000.0,0.00016861,2]
[403834744,1769578242846,-1000.0,0.00016861,2]
[403834745,1769578242855,-1000.0,0.00016861,2]
[403834746,1769578242864,-854.2589148,0.00016861,2]
[403834747,1769578242873,-1000.0,0.00016861,2]
[403834748,1769578242883,-1000.0,0.00016861,2]
[403834749,1769578242892,-1000.0,0.00016861,2]
[403834750,1769578242902,-1000.0,0.00016861,2]
[403834751,1769578242911,-1000.0,0.00016861,2]
[403834752,1769578242919,-1000.0,0.00016861,2]
[403834753,1769578242928,-1000.0,0.00016861,2]
[403834754,1769578242938,-250.0,0.00016861,2]
[403834755,1769578242947,-88.29048661,0.00016861,2]
[403834756,1769578242974,-360.024877,0.00016861,2]
[403834757,1769578242985,-551.68463639,0.00016861,2]
[403834758,1769578242994,-500.0,0.00016861,2]
[403834759,1769578243003,-1000.0,0.00016861,2]
[403834760,1769578243013,-250.0,0.00016861,2]
[403834761,1769578243023,-167.69234595,0.00016861,2]
[403834766,1769578245455,-832.30765405,0.00016861,2]
[403834767,1769578245465,-500.0,0.00016861,2]
[403834768,1769578245474,-250.0,0.00016861,2]
[403834769,1769578245483,-747.83225499,0.00016861,2]
[403834771,1769578248850,185.48521425,0.00014792,2]
[403834772,1769578276689,-3109.631,0.00014892,2]
[403834797,1769578714441,166.66,0.0001455,2]
[403834798,1769578720162,-166.66,0.00014856,2]
[403834799,1769578727599,181.0,0.00021,30]
[403834800,1769578744888,169.32,0.00012248,2]
[403834807,1769578969862,9497.37,0.00012486,2]
[403834808,1769578969886,820.43,0.00012486,2]
[403834810,1769579001043,200.0,0.00012385,2]
[403834811,1769579001500,200.0,0.00012386,2]
[403834814,1769579181515,10000.01,0.00012,2]
[403834815,1769579181541,10000.01,0.00012,2]
[403834816,1769579181566,10000.01,0.00012,2]
[403834817,1769579181590,10000.01,0.00012,2]
[403834818,1769579181615,9999.96,0.00012,2]
[403834840,1769579432381,-229.60396276,0.00014963,2]
[403834841,1769579432391,-343.47379657,0.00014963,2]
[403834842,1769579432400,-183.10841353,0.00014963,2]
[403834843,1769579432419,-281.61738647,0.00014963,2]
[403834844,1769579432428,-343.62391122,0.00014972,2]
[403834845,1769579432437,-1200.0,0.00014981,2]
[403834846,1769579432446,-2500.0,0.00014982,2]
[403834847,1769579432455,-302.38802235,0.00014982,2]
[403834848,1769579432464,-300.0,0.0001499,2]
[403834849,1769579432474,-261.0,0.0001499,2]
[403834850,1769579432483,-449.86533864,0.00014991,2]
[403834851,1769579432492,-1384.61,0.00015066,2]
[403834852,1769579432501,-1500.0,0.0001507,2]
[403834853,1769579432510,-166.66,0.00015162,2]
[403834854,1769579432519,-196.42252383,0.00015219,2]
[403834855,1769579432530,-747.83747617,0.00015219,2]
[403834856,1769579432539,-500.0,0.00015226,2]
[403834857,1769579432548,-877.35,0.00015238,2]
[403834858,1769579432557,-150.0,0.00015302,2]
[403834859,1769579432566,-169.32,0.0001531,2]
[403834860,1769579432575,-204.43,0.00015313,2]
[403834861,1769579432584,-300.0,0.00015362,2]
[403834862,1769579432593,-219.1276311,0.00015363,2]
[403834863,1769579432602,-403.46642661,0.00015363,2]
[403834864,1769579432617,-96.53357339,0.00015363,2]
[403834865,1769579432626,-500.0,0.00015363,2]
[403834866,1769579432635,-500.0,0.00015363,2]
[403834867,1769579432644,-500.0,0.00015363,2]
[403834868,1769579432653,-500.0,0.00015363,2]
[403834869,1769579432662,-500.0,0.00015363,2]
[403834870,1769579432671,-500.0,0.00015363,2]
[403834871,1769579432680,-500.0,0.00015363,2]
[403834872,1769579432690,-500.0,0.00015363,2]
[403834873,1769579432699,-500.0,0.00015363,2]
[403834874,1769579432708,-500.0,0.00015363,2]
[403834875,1769579432718,-500.0,0.00015363,2]
[403834876,1769579432727,-151.0,0.00015363,2]
[403834877,1769579432736,-500.0,0.00015363,2]
[403834878,1769579432745,-151.0,0.00015363,2]
[403834879,1769579432755,-500.0,0.00015363,2]
[403834880,1769579432764,-500.0,0.00015363,2]
[403834881,1769579432777,-151.0,0.00015363,2]
[403834882,1769579432787,-151.0,0.00015363,2]
[403834883,1769579432797,-151.0,0.00015363,2]
[403834884,1769579432806,-151.0,0.00015363,2]
[403834885,1769579432817,-554.82043291,0.00015363,2]
[403834886,1769579432826,-151.0,0.00015363,2]
[403834887,1769579432837,-151.0,0.00015363,2]
[403834888,1769579432847,-151.0,0.00015363,2]
[403834889,1769579432857,-151.0,0.00015363,2]
[403834890,1769579432866,-151.0,0.00015363,2]
[403834891,1769579432876,-313.36,0.00015363,2]
[403834892,1769579432885,-568.26,0.00015372,2]
[403834893,1769579432895,-166.66,0.00015469,2]
[403834894,1769579432904,-500.0,0.00015479,2]
[403834895,1769579432914,-558.47,0.000155,2]
[403834896,1769579432923,-172.27,0.000155,2]
[403834897,1769579432932,-478.33,0.000155,2]
[403834898,1769579432941,-468.85,0.000155,2]
[403834899,1769579432950,-172.27,0.000155,2]
[403834900,1769579432960,-468.85,0.000155,2]
[403834901,1769579432969,-200.0,0.00015557,2]
[403834902,1769579432978,-1117.98,0.000156,2]
[403834903,1769579432987,-172.27,0.000156,2]
[403834904,1769579432996,-468.96,0.000156,2]
[403834905,1769579433006,-313.36,0.00015637,2]
[403834906,1769579433016,-172.16,0.00015762,2]
[403834907,1769579433025,-166.66,0.00015775,2]
[403834908,1769579433034,-166.66,0.0001581,2]
[403834909,1769579433043,-172.16,0.00015857,2]
[403834910,1769579433052,-230.40528659,0.00015875,2]
[403834911,1769579433061,-500.0,0.00015875,2]
[403834912,1769579433070,-500.0,0.00015875,2]
[403834913,1769579433079,-500.0,0.00015875,2]
[403834914,1769579433088,-500.0,0.00015875,2]
[403834915,1769579433097,-500.0,0.00015875,2]
[403834916,1769579433106,-254.10007489,0.00015875,2]
[403834917,1769579433115,-500.0,0.00015875,2]
[403834918,1769579433124,-500.0,0.00015875,2]
[403834919,1769579433133,-500.0,0.00015875,2]
[403834920,1769579433144,-500.0,0.00015875,2]
[403834921,1769579433152,-500.0,0.00015875,2]
[403834922,1769579433162,-500.0,0.00015875,2]
[403834923,1769579433171,-228.72496667,0.00015875,2]
[403834924,1769579433181,-500.0,0.00015875,2]
[403834925,1769579433190,-500.0,0.00015875,2]
[403834926,1769579433199,-500.0,0.00015875,2]
[403834927,1769579433207,-500.0,0.00015875,2]
[403834928,1769579433216,-500.0,0.00015875,2]
[403834929,1769579433226,-500.0,0.00015875,2]
[403834930,1769579433235,-500.0,0.00015875,2]
[403834931,1769579433244,-250.0,0.00015876,2]
[403834932,1769579433253,-578.20924308,0.00015876,2]
[403834933,1769579433262,-250.0,0.00015876,2]
[403834934,1769579433271,-500.0,0.00015876,2]
[403834935,1769579433280,-250.0,0.00015876,2]
[403834936,1769579433289,-500.0,0.00015876,2]
[403834937,1769579433298,-250.0,0.00015876,2]
[403834938,1769579433307,-500.0,0.00015876,2]
[403834939,1769579433316,-250.0,0.00015876,2]
[403834940,1769579433325,-500.0,0.00015876,2]
[403834941,1769579433335,-250.0,0.00015876,2]
[403834942,1769579433344,-500.0,0.00015876,2]
[403834943,1769579433353,-500.0,0.00015876,2]
[403834944,1769579433362,-250.0,0.00015876,2]
[403834945,1769579433371,-500.0,0.00015876,2]
[403834946,1769579433381,-500.0,0.00015876,2]
[403834947,1769579433390,-500.0,0.00015876,2]
[403834948,1769579433399,-500.0,0.00015876,2]
[403834949,1769579433408,-250.0,0.00015876,2]
[403834950,1769579433418,-429.7201173,0.00015876,2]
[403834951,1769579433428,-250.0,0.00015876,2]
[403834952,1769579433437,-500.0,0.00015876,2]
[403834953,1769579433447,-250.0,0.00015876,2]
[403834954,1769579433456,-500.0,0.00015876,2]
[403834955,1769579433465,-250.0,0.00015876,2]
[403834956,1769579433475,-500.0,0.00015876,2]
[403834957,1769579433485,-500.0,0.00015876,2]
[403834958,1769579433494,-209.40437684,0.00015876,2]
[403834959,1769579433503,-721.12765535,0.00015876,2]
[403834960,1769579433512,-174.61919141,0.00015876,2]
[403834961,1769579433521,-250.0,0.00015876,2]
[403834962,1769579433531,-250.0,0.00015876,2]
[403834963,1769579433540,-250.0,0.00015876,2]
[403834964,1769579433549,-250.0,0.00015876,2]
[403834965,1769579433558,-322.6107,0.00015876,2]
[403834966,1769579433567,-1000.0,0.00015876,2]
[403834967,1769579433577,-1000.0,0.00015876,2]
[403834968,1769579433586,-1000.0,0.00015876,2]
[403834969,1769579433595,-1000.0,0.00015876,2]
[403834970,1769579433609,-1000.0,0.00015876,2]
[403834971,1769579433618,-1000.0,0.00015876,2]
[403834972,1769579433627,-1000.0,0.00015876,2]
[403834973,1769579433637,-854.2589148,0.00015876,2]
[403834974,1769579433646,-1000.0,0.00015876,2]
[403834975,1769579433656,-1000.0,0.00015876,2]
[403834976,1769579433665,-155.21861138,0.00015876,2]
[403834977,1769579433675,-1000.0,0.00015876,2]
[403834978,1769579433684,-1000.0,0.00015876,2]
[403834979,1769579433693,-3000.0,0.00015876,2]
[403834980,1769579433703,-3000.0,0.00015876,2]
[403834981,1769579433712,-3000.0,0.00015876,2]
[403834982,1769579433722,-1500.0,0.00015876,2]
[403834983,1769579433732,-500.0,0.00015876,2]
[403834984,1769579433741,-500.0,0.00015876,2]
[403834985,1769579433751,-500.0,0.00015876,2]
[403834986,1769579433761,-500.0,0.00015876,2]
[403834987,1769579433772,-500.0,0.00015876,2]
[403834988,1769579433782,-500.0,0.00015876,2]
[403834989,1769579433791,-500.0,0.00015876,2]
[403834990,1769579433801,-500.0,0.00015876,2]
[403834991,1769579433811,-500.0,0.00015876,2]
[403834992,1769579433820,-500.0,0.00015876,2]
[403834993,1769579433830,-500.0,0.00015876,2]
[403834994,1769579433840,-313.36,0.00015911,2]
[403834995,1769579433850,-217.15233878,0.00015931,2]
[403834996,1769579433860,-435.04,0.00015945,2]
[403834997,1769579433869,-172.16,0.00015952,2]
[403834998,1769579433879,-1231.25,0.00015973,2]
[403834999,1769579433889,-949.14,0.00015973,2]
[403835000,1769579433900,-225.18697532,0.00015986,2]
[403835001,1769579433910,-233.51889341,0.00016041,2]
[403835002,1769579433920,-172.16,0.00016046,2]
[403835003,1769579433929,-151.0,0.00016058,2]
[403835004,1769579433939,-151.0,0.00016058,2]
[403835005,1769579433948,-976099.011671,0.00016061,2]
[403835006,1769579433962,-23900.988329,0.00016061,2]
[403835007,1769579433971,-122.67489451,0.00016071,2]
[403835008,1769579433983,-29.28510549,0.00016071,2]
[403835009,1769579433993,-166.66,0.00016081,2]
[403835010,1769579434003,-969.1,0.00016082,2]
[403835011,1769579434013,-242.15909246,0.00016096,2]
[403835012,1769579434022,-172.16,0.00016141,2]
[403835013,1769579434032,-251.11897888,0.00016151,2]
[403835014,1769579434041,-20574.75651765,0.00016152,2]
[403835015,1769579434050,-260.4103811,0.00016206,2]
[403835016,1769579434060,-172.16,0.00016235,2]
[403835017,1769579434069,-270.0455652,0.00016261,2]
[403835018,1769579434078,-172.27,0.00016274,2]
[403835019,1769579434087,-468.85,0.00016274,2]
[403835020,1769579434096,-172.27,0.00016274,2]
[403835021,1769579434106,-468.85,0.00016274,2]
[403835022,1769579434115,-468.85,0.00016274,2]
[403835023,1769579434124,-172.27,0.00016274,2]
[403835024,1769579434133,-468.85,0.00016274,2]
[403835025,1769579434143,-172.27,0.00016274,2]
[403835026,1769579434152,-468.85,0.00016274,2]
[403835027,1769579434161,-172.27,0.00016274,2]
[403835028,1769579434170,-468.85,0.00016274,2]
[403835029,1769579434179,-172.27,0.00016274,2]
[403835030,1769579434189,-468.85,0.00016274,2]
[403835031,1769579434198,-468.85,0.00016274,2]
[403835032,1769579434207,-172.27,0.00016274,2]
[403835033,1769579434216,-468.85,0.00016274,2]
[403835034,1769579434226,-172.27,0.00016274,2]
[403835035,1769579434235,-468.85,0.00016274,2]
[403835036,1769579434244,-468.85,0.00016274,2]
[403835037,1769579434254,-468.85,0.00016274,2]
[403835038,1769579434264,-468.85,0.00016274,2]
[403835039,1769579434274,-1406.29,0.00016278,2]
[403835040,1769579434284,-559.04,0.00016278,2]
[403835041,1769579434293,-176.1,0.00016278,2]
[403835042,1769579434302,-468.85,0.00016278,2]
[403835043,1769579434312,-280.03725112,0.00016316,2]
[403835044,1769579434321,-166.66,0.00016332,2]
[403835045,1769579434330,-824.18635661,0.00016338,2]
[403835046,1769579434340,-1176.09976394,0.00016338,2]
[403835047,1769579434351,-2942.98543606,0.00016338,2]
[403835048,1769579434362,-12301.482,0.00016338,2]
[403835049,1769579434371,-1474.3326,0.00016338,2]
[403835050,1769579434380,-237.1434,0.00016338,2]
[403835051,1769579434389,-290.39862941,0.00016371,2]
[403835052,1769579434398,-181.08010149,0.00016424,2]
[403835053,1769579434407,-885.86649465,0.00016424,2]
[403835054,1769579434417,-301.1433787,0.00016426,2]
[403835055,1769579434426,-187.27300562,0.00016437,2]
[403835056,1769579434435,-500.0,0.00016437,2]
[403835057,1769579434446,-234.38618627,0.00016437,2]
[403835058,1769579434457,-405.41804965,0.00016437,2]
[403835059,1769579434467,-500.0,0.00016438,2]
[403835060,1769579434476,-500.0,0.00016438,2]
[403835061,1769579434486,-500.0,0.00016438,2]
[403835062,1769579434495,-500.0,0.00016438,2]
[403835063,1769579434505,-500.0,0.00016438,2]
[403835064,1769579434514,-500.0,0.00016438,2]
[403835065,1769579434524,-500.0,0.00016438,2]
[403835066,1769579434533,-500.0,0.00016438,2]
[403835067,1769579434543,-500.0,0.00016438,2]
[403835068,1769579434552,-500.0,0.00016438,2]
[403835069,1769579434564,-500.0,0.00016438,2]
[403835070,1769579434575,-500.0,0.00016438,2]
[403835071,1769579434584,-500.0,0.00016438,2]
[403835072,1769579434594,-500.0,0.00016438,2]
[403835073,1769579434603,-500.0,0.00016438,2]
[403835074,1769579434612,-500.0,0.00016438,2]
[403835075,1769579434621,-500.0,0.00016438,2]
[403835076,1769579434631,-500.0,0.00016438,2]
[403835077,1769579434640,-500.0,0.00016438,2]
[403835078,1769579434650,-190.52377981,0.00016438,2]
[403835079,1769579434659,-500.0,0.00016438,2]
[403835080,1769579434669,-500.0,0.00016438,2]
[403835081,1769579434678,-500.0,0.00016438,2]
[403835082,1769579434687,-500.0,0.00016438,2]
[403835083,1769579434698,-500.0,0.00016438,2]
[403835084,1769579434707,-500.0,0.00016438,2]
[403835085,1769579434716,-500.0,0.00016438,2]
[403835086,1769579434726,-500.0,0.00016438,2]
[403835087,1769579434735,-500.0,0.00016438,2]
[403835088,1769579434744,-500.0,0.00016438,2]
[403835089,1769579434755,-500.0,0.00016438,2]
[403835090,1769579434764,-500.0,0.00016438,2]
[403835091,1769579434777,-500.0,0.00016438,2]
[403835092,1769579434787,-500.0,0.00016438,2]
[403835093,1769579434796,-500.0,0.00016438,2]
[403835094,1769579434806,-500.0,0.00016438,2]
[403835095,1769579434818,-500.0,0.00016438,2]
[403835096,1769579434827,-300.0,0.00016438,2]
[403835097,1769579434838,-500.0,0.00016438,2]
[403835098,1769579434847,-500.0,0.00016438,2]
[403835099,1769579434857,-500.0,0.00016438,2]
[403835100,1769579434867,-1864.0,0.00016438,2]
[403835101,1769579434877,-1114.0,0.00016438,2]
[403835102,1769579434888,-250.0,0.00016459,2]
[403835103,1769579434897,-300.0,0.00016459,2]
[403835104,1769579434907,-600.0,0.00016459,2]
[403835105,1769579434917,-250.0,0.00016459,2]
[403835106,1769579434927,-254.07533624,0.00016475,2]
[403835107,1769579434936,-2500.0,0.00016479,2]
[403835108,1769579434946,-600.0,0.00016479,2]
[403835109,1769579434955,-195.0,0.00016479,2]
[403835110,1769579434965,-1680.0,0.00016479,2]
[403835111,1769579434975,-824.18635661,0.00016512,2]
[403835112,1769579434984,-435.04,0.00016542,2]
[403835113,1769579434994,-2500.0,0.0001657,2]
[403835114,1769579435003,-151.0,0.0001666,2]
[403835115,1769579435013,-28887.5811624,0.00016663,2]
[403835116,1769579435022,-996.370173,0.00016663,2]
[403835117,1769579435031,-24926.4423555,0.0001667,2]
[403835118,1769579435044,-1351.14592439,0.0001667,2]
[403835119,1769579435055,-1283.74605043,0.0001667,2]
[403835120,1769579437569,-250.89733365,0.00016055,2]
[403835121,1769579437578,-4368.92363916,0.0001667,2]
[403835122,1769579437589,-540.01220046,0.0001667,2]
[403835123,1769579437600,-822.627884,0.0001667,2]
[403835124,1769579437628,-15076.31326257,0.0001667,2]
[403835125,1769579437685,-8691.66750054,0.0001667,2]
[403835126,1769579437696,-3729.44527212,0.0001667,2]
[403835294,1769579439768,-511.90842184,0.0001667,2]
[403835295,1769579439782,-466.06894887,0.0001667,2]
[403835296,1769579439985,-9939.39449432,0.0001667,2]
[403835297,1769579439995,-30877.8383074,0.0001667,2]
[403835298,1769579440004,-9162.6231425,0.0001667,2]
[403835299,1769579440014,-824.18635661,0.00016685,2]
[403835300,1769579440023,-200.0,0.000167,6]
[403835301,1769579440032,-166.51,0.00016712,2]
[403835302,1769579440041,-188.08086268,0.00016747,2]
[403835303,1769579440051,-340.71692266,0.00016753,2]
[403835304,1769579440060,-500.0,0.000168,6]
[403835305,1769579440069,-8401.0,0.00016806,2]
[403835306,1769579440079,-166.66,0.00016853,2]
[403835307,1769579440088,-824.18635661,0.00016859,2]
[403835308,1769579440097,-200.0,0.00016861,2]
[403835309,1769579440106,-700.0,0.000169,6]
[403835310,1769579440115,-1000.0,0.000169,2]
[403835311,1769579440124,-11358.4717,0.000169,2]
[403835312,1769579440134,-344.0,0.00016969,2]
[403835313,1769579440143,-187.78006525,0.00016972,2]
[403835314,1769579440152,-918.64355495,0.00016972,2]
[403835315,1769579440161,-344.0,0.00016973,2]
[403835316,1769579440171,-45667.94884631,0.00017,2]
[403835319,1769579443882,-52127.18242538,0.00017,2]
[403835320,1769579443933,-316.47033406,0.00017,2]
[403835321,1769579444102,-478.77671032,0.00017,2]
[403835325,1769579445628,-14612.06547665,0.00017,2]
[403835326,1769579445740,-1141.6,0.00017,2]
[403835327,1769579445906,-2371.29992487,0.00017,2]
[403835328,1769579445917,-362.84828034,0.00017,2]
[403835333,1769579729738,150.0,0.00015,10]
[403835334,1769579743380,0.05,0.00014856,2]
[403835335,1769579743405,473.85,0.00014856,2]
[403835336,1769579815212,-480.611,0.00015598,2]
[403835337,1769579815235,-250.0,0.00015631,2]
[403835338,1769579815258,-250.0,0.00015758,2]
[403835339,1769579815287,-500.0,0.00015875,2]
[403835340,1769579815310,-578.20924308,0.00015876,2]
[403835341,1769579815347,-900.0,0.000159,5]
[403835342,1769579815381,-166.28,0.00015916,2]
[403835343,1769579815418,-275.48815625,0.00015949,2]
[403835344,1769579815442,-10161.33338728,0.00016023,2]
[403835345,1769579815466,-11613.088858,0.00016023,2]
[403835346,1769579815489,-193.47385299,0.00016058,2]
[403835347,1769579815512,-300.0,0.00016059,2]
[403835348,1769579815535,-424.0,0.0001606,2]
[403835349,1769579815557,-229.0,0.0001606,2]
[403835350,1769579815580,-1200.0,0.0001606,2]
[403835351,1769579815603,-300.0,0.0001606,2]
[403835352,1769579816120,-712178.5155024,0.00016061,2]
[403835362,1769580626269,516.55,0.0001477,2]
[403835366,1769580631641,-1177.210154,0.00015102,2]
[403835367,1769580631650,-195.0,0.00015178,2]
[403835368,1769580631660,-600.0,0.00015197,2]
[403835369,1769580631670,-195.0,0.0001523,2]
[403835370,1769580631679,-1306.84,0.00015235,2]
[403835371,1769580631689,-250.0,0.00015273,2]
[403835372,1769580631699,-600.0,0.00015287,2]
[403835373,1769580631708,-600.0,0.00015287,2]
[403835374,1769580631720,-1000.0,0.00015349,2]
[403835375,1769580631732,-150.00502442,0.00015421,2]
[403835376,1769580631745,-243.09556954,0.00015509,2]
[403835377,1769580631767,-273.45443046,0.00015509,2]
[403835378,1769580631778,-151.0,0.00015576,2]
[403835379,1769580631787,-300.0,0.00015578,2]
[403835380,1769580631798,-1034.54556954,0.00015578,2]
[403835381,1769580631809,-165.45443046,0.00015578,2]
[403835382,1769580631819,-164.85815263,0.00015579,2]
[403835383,1769580632004,-4194.14734416,0.00015579,2]
[403835385,1769580632015,-288.1864068,0.00015579,2]
[403835388,1769580632025,-446.88,0.00015579,2]
[403835390,1769580632036,-529.67461947,0.00015579,2]
[403835392,1769580632047,-486.87103,0.00015579,2]
[403835394,1769580632058,-1955.08237253,0.00015579,2]
[403835395,1769580632069,-628.64973416,0.00015579,2]
[403835396,1769580632080,-1570.60816914,0.00015579,2]
[403835397,1769580632090,-2756.47653188,0.00015579,2]
[403835398,1769580637838,-2167.29775329,0.00015579,2]
[403835399,1769580637898,-896.40182499,0.00015579,2]
[403835400,1769580637908,-637.9724399,0.00015579,2]
[403835401,1769580637920,-1266.01117204,0.00015579,2]
[403835402,1769580637932,-634.59901641,0.00015579,2]
[403835404,1769580640007,-981376.2834326,0.00015579,2]
[403835405,1769580640017,-578.20924308,0.00015651,2]
[403835406,1769580640026,-209.40437684,0.00015669,2]
[403835407,1769580640036,-174.61919141,0.00015669,2]
[403835408,1769580640045,-322.6107,0.00015669,2]
[403835409,1769580640055,-558.10949575,0.00015678,2]
[403835410,1769580640065,-558.10949575,0.00015678,2]
[403835411,1769580640077,-558.10949575,0.00015678,2]
[403835412,1769580640086,-558.10949575,0.00015678,2]
[403835413,1769580640096,-558.10949575,0.00015678,2]
[403835414,1769580640109,-558.10949575,0.00015678,2]
[403835415,1769580640119,-558.10949575,0.00015678,2]
[403835416,1769580640129,-558.10949575,0.00015678,2]
[403835417,1769580640138,-558.10949575,0.00015678,2]
[403835418,1769580640149,-558.10949575,0.00015678,2]
[403835419,1769580640158,-558.10949575,0.00015678,2]
[403835420,1769580640169,-558.10949575,0.00015678,2]
[403835421,1769580640181,-558.10949575,0.00015678,2]
[403835422,1769580640190,-558.10949575,0.00015678,2]
[403835423,1769580640200,-558.10949575,0.00015678,2]
[403835424,1769580640209,-558.10949575,0.00015678,2]
[403835425,1769580640219,-558.10949575,0.00015678,2]
[403835426,1769580640228,-558.10949575,0.00015678,2]
[403835427,1769580640238,-558.10949575,0.00015678,2]
[403835428,1769580640247,-558.10949575,0.00015678,2]
[403835429,1769580640256,-558.10949575,0.00015678,2]
[403835430,1769580640266,-558.10949575,0.00015678,2]
[403835431,1769580640275,-558.10949575,0.00015678,2]
[403835432,1769580640284,-558.10949575,0.00015678,2]
[403835433,1769580640294,-558.10949575,0.00015678,2]
[403835434,1769580640303,-558.10949575,0.00015678,2]
[403835436,1769580640313,-558.10949575,0.00015678,2]
[403835437,1769580640322,-558.10949575,0.00015678,2]
[403835439,1769580640331,-558.10949575,0.00015678,2]
[403835441,1769580640340,-558.10949575,0.00015678,2]
[403835443,1769580640349,-558.10949575,0.00015678,2]
[403835445,1769580640358,-558.10949575,0.00015678,2]
[403835447,1769580640367,-2604.51098016,0.00015678,2]
[403835449,1769580640376,-2604.51098016,0.00015678,2]
[403835450,1769580640385,-155.0,0.00015678,2]
[403835451,1769580640394,-26257.79009828,0.00015679,2]
[403835452,1769580640403,-217.15233878,0.00015724,2]
[403835453,1769580640412,-150.0,0.00015777,2]
[403835454,1769580640422,-150.0,0.00015777,2]
[403835455,1769580640432,-558.0,0.00015777,2]
[403835456,1769580640442,-150.0,0.00015777,2]
[403835457,1769580640451,-500.0,0.00015777,2]
[403835458,1769580640461,-150.0,0.00015777,2]
[403835459,1769580640470,-500.0,0.00015777,2]
[403835460,1769580640480,-157.26285183,0.00015777,2]
[403835461,1769580640489,-150.0,0.00015777,2]
[403835462,1769580640498,-150.0,0.00015777,2]
[403835463,1769580640507,-203.06487634,0.00015777,2]
[403835464,1769580640516,-150.0,0.00015777,2]
[403835465,1769580640525,-150.0,0.00015777,2]
[403835466,1769580640535,-500.0,0.00015777,2]
[403835467,1769580640544,-150.0,0.00015777,2]
[403835468,1769580640553,-500.0,0.00015777,2]
[403835469,1769580640562,-225.18697532,0.00015779,2]
[403835470,1769580640571,-150.0,0.00015832,2]
[403835471,1769580640580,-150.0,0.00015832,2]
[403835472,1769580640590,-558.0,0.00015832,2]
[403835473,1769580640598,-150.0,0.00015832,2]
[403835474,1769580640607,-500.0,0.00015832,2]
[403835475,1769580640617,-150.0,0.00015832,2]
[403835476,1769580640626,-600.0,0.00015832,2]